fUSD/lending_fUSD_20250423
["ID","MTS","AMOUNT","RATE_DAILY","PERIOD"]
[358758927,1745414820504,-500.0,0.00046585,30]
[358758928,1745414820566,-500.0,0.00046585,30]
[358758929,1745414820624,-500.0,0.00046585,30]
[358758930,1745414820689,-537.09,0.00046585,30]
[358758931,1745414820747,-1506.2,0.00046585,30]
[358758932,1745414820805,-500.0,0.00046585,30]
[358758933,1745414820862,-500.0,0.00046585,30]
[358758934,1745414820921,-500.0,0.00046585,30]
[358758935,1745414820978,-500.0,0.00046585,30]
[358758936,1745414821036,-537.09,0.00046585,30]
[358758937,1745414821096,-500.0,0.00046585,30]
[358758938,1745414821153,-1506.2,0.00046585,30]
[358758939,1745414821208,-500.0,0.00046585,30]
[358758940,1745414821270,-500.0,0.00046585,30]
[358758941,1745414821331,-537.09,0.00046585,30]
[358758942,1745414821393,-1506.2,0.00046585,30]
[358758943,1745414821453,-500.0,0.00046585,30]
[358758944,1745414821515,-500.0,0.00046585,30]
[358758945,1745414821575,-500.0,0.00046585,30]
[358758946,1745414821638,-500.0,0.00046585,30]
[358758947,1745414821695,-537.09,0.00046585,30]
[358758948,1745414821752,-500.0,0.00046585,30]
[358758949,1745414821810,-718.07,0.00046585,30]
[358758950,1745414821868,-1506.2,0.00046585,30]
[358758951,1745414821928,-330.75566873,0.00046585,30]
[358758952,1745414821985,-500.0,0.00046585,30]
[358758953,1745414822045,-500.0,0.00046585,30]
[358758954,1745414822103,-500.0,0.00046585,30]
[358758955,1745414822167,-537.09,0.00046585,30]
[358758956,1745414822225,-500.0,0.00046585,30]
[358758957,1745414822287,-718.07,0.00046585,30]
[358758958,1745414822354,-1506.2,0.00046585,30]
[358758959,1745414822415,-500.0,0.00046585,30]
[358758960,1745414822475,-500.0,0.00046585,30]
[358758961,1745414822536,-105.47274578,0.00046585,30]
[358758962,1745414829850,201.12,0.00018973,2]
[358758963,1745414830660,-1999.999993,0.00046585,120]
[358758964,1745414830737,-444.6180735,0.00046585,90]
[358758965,1745414830798,-363732.69142453,0.00046585,120]
[358758966,1745414830856,-183.59340126,0.00046585,60]
[358758967,1745414830938,-273.1086511,0.00046585,120]
[358758968,1745414830999,-1990.50357412,0.00046585,120]
[358758969,1745414831057,-284.3062184,0.00046585,120]
[358758970,1745414831121,-706.14128646,0.00046585,120]
[358758971,1745414831181,-1293.67343038,0.00046585,120]
[358758972,1745414831239,-709.72788771,0.00046585,120]
[358758973,1745414831299,-336.49029784,0.00046585,120]
[358758974,1745414831361,-1293.03244113,0.00046585,120]
[358758975,1745414831420,-3110.10684342,0.00046585,120]
[358758976,1745414831476,-271.04149683,0.00046585,120]
[358758977,1745414831536,-19590.6924478,0.00046585,120]
[358758978,1745414831594,-366.28809529,0.00046585,120]
[358758979,1745414831649,-1745.60421143,0.00046585,120]
[358758980,1745414831698,-622.00942975,0.00046585,120]
[358758981,1745414831751,-1751.3473815,0.00046585,120]
[358758982,1745414831803,-663.38793505,0.00046585,120]
[358758983,1745414831860,-309.607193,0.00046585,120]
[358758984,1745414832312,-371686.3547979,0.00046585,120]
[358758985,1745414832375,-797.51215137,0.00046585,120]
[358758986,1745414832441,-1449.00184502,0.00046585,120]
[358758987,1745414832501,-566.51,0.00046585,120]
[358758988,1745414832559,-566.51,0.00046585,120]
[358758989,1745414832615,-566.51,0.00046585,120]
[358758990,1745414832673,-566.51,0.00046585,120]
[358758991,1745414832731,-566.51,0.00046585,120]
[358758992,1745414832788,-566.51,0.00046585,120]
[358758993,1745414832845,-566.51,0.00046585,120]
[358758994,1745414832904,-566.51,0.00046585,120]
[358758995,1745414832964,-566.51,0.00046585,120]
[358758996,1745414833023,-566.51,0.00046585,120]
[358758997,1745414833081,-566.51,0.00046585,120]
[358758998,1745414833140,-566.51,0.00046585,120]
[358758999,1745414833200,-566.51,0.00046585,120]
[358759000,1745414833257,-566.51,0.00046585,120]
[358759001,1745414833316,-566.51,0.00046585,120]
[358759002,1745414833375,-566.51,0.00046585,120]
[358759003,1745414833435,-566.51,0.00046585,120]
[358759004,1745414833496,-566.51,0.00046585,120]
[358759005,1745414833559,-566.51,0.00046585,120]
[358759006,1745414833618,-566.51,0.00046585,120]
[358759007,1745414833678,-566.51,0.00046585,120]
[358759008,1745414833737,-566.51,0.00046585,120]
[358759009,1745414833805,-566.51,0.00046585,120]
[358759010,1745414833864,-566.53463068,0.00046585,120]
[358759011,1745414833926,-500.0,0.00046585,120]
[358759012,1745414833985,-500.0,0.00046585,120]
[358759013,1745414834045,-500.0,0.00046585,120]
[358759014,1745414834102,-500.0,0.00046585,120]
[358759015,1745414834164,-500.0,0.00046585,120]
[358759016,1745414834226,-500.0,0.00046585,120]
[358759017,1745414834287,-500.0,0.00046585,120]
[358759018,1745414834349,-326.47549892,0.00046585,120]
[358759019,1745414834410,-500.0,0.00046585,120]
[358759020,1745414834471,-500.0,0.00046585,120]
[358759021,1745414834533,-500.0,0.00046585,120]
[358759022,1745414834595,-500.0,0.00046585,120]
[358759023,1745414834656,-173.0,0.00046585,120]
[358759024,1745414834715,-500.0,0.00046585,120]
[358759025,1745414834769,-500.0,0.00046585,120]
[358759026,1745414834825,-500.0,0.00046585,120]
[358759027,1745414834886,-500.0,0.00046585,120]
[358759028,1745414834944,-500.0,0.00046585,120]
[358759029,1745414835002,-500.0,0.00046585,120]
[358759030,1745414835058,-500.0,0.00046585,120]
[358759031,1745414835112,-500.0,0.00046585,120]
[358759032,1745414835168,-500.0,0.00046585,120]
[358759033,1745414835224,-500.0,0.00046585,120]
[358759034,1745414835281,-500.0,0.00046585,120]
[358759035,1745414835339,-500.0,0.00046585,120]
[358759036,1745414835396,-500.0,0.00046585,120]
[358759037,1745414835455,-500.0,0.00046585,120]
[358759038,1745414835513,-500.0,0.00046585,120]
[358759039,1745414835573,-500.0,0.00046585,120]
[358759040,1745414835633,-500.0,0.00046585,120]
[358759041,1745414835694,-500.0,0.00046585,120]
[358759042,1745414835752,-500.0,0.00046585,120]
[358759043,1745414835810,-500.0,0.00046585,120]
[358759044,1745414835867,-500.0,0.00046585,120]
[358759045,1745414835926,-500.0,0.00046585,120]
[358759046,1745414835985,-557.40197183,0.00046585,120]
[358759047,1745414836047,-500.0,0.00046585,120]
[358759048,1745414836108,-500.0,0.00046585,120]
[358759049,1745414836171,-500.0,0.00046585,120]
[358759050,1745414836231,-500.0,0.00046585,120]
[358759051,1745414836296,-500.0,0.00046585,120]
[358759052,1745414836361,-500.0,0.00046585,120]
[358759053,1745414836421,-500.0,0.00046585,120]
[358759054,1745414836480,-500.0,0.00046585,120]
[358759055,1745414836539,-500.0,0.00046585,120]
[358759056,1745414836600,-500.0,0.00046585,120]
[358759057,1745414836659,-500.0,0.00046585,120]
[358759058,1745414836716,-500.0,0.00046585,120]
[358759059,1745414836773,-500.0,0.00046585,120]
[358759060,1745414836828,-376.08,0.00046585,120]
[358759061,1745414836888,-1000.0,0.00046585,120]
[358759062,1745414836943,-1000.0,0.00046585,120]
[358759063,1745414836999,-1000.0,0.00046585,120]
[358759064,1745414837054,-1000.0,0.00046585,120]
[358759065,1745414837110,-563.35470268,0.00046585,120]
[358759066,1745414837167,-500.0,0.00046585,120]
[358759067,1745414837223,-500.0,0.00046585,120]
[358759068,1745414837280,-500.0,0.00046585,120]
[358759069,1745414837338,-500.0,0.00046585,120]
[358759070,1745414837397,-516.98583052,0.00046585,120]
[358759071,1745414837461,-191.82762782,0.00046585,120]
[358759072,1745414837521,-200.0,0.00046585,120]
[358759073,1745414837580,-207.4,0.00046585,120]
[358759074,1745414837643,-215.0738,0.00046585,120]
[358759075,1745414837708,-223.0315306,0.00046585,120]
[358759076,1745414837953,-231.28369723,0.00046585,120]
[358759077,1745414838010,-239.84119403,0.00046585,120]
[358759078,1745414838070,-248.71531821,0.00046585,120]
[358759079,1745414838129,-257.91778498,0.00046585,120]
[358759080,1745414838188,-267.46074303,0.00046585,120]
[358759081,1745414838248,-277.35679052,0.00046585,120]
[358759082,1745414838307,-287.61899177,0.00046585,120]
[358759083,1745414838367,-298.26089446,0.00046585,120]
[358759084,1745414838427,-309.29654756,0.00046585,120]
[358759085,1745414838487,-320.74051982,0.00046585,120]
[358759086,1745414838551,-332.60791905,0.00046585,120]
[358759087,1745414838613,-344.91441206,0.00046585,120]
[358759088,1745414838673,-357.6762453,0.00046585,120]
[358759089,1745414838733,-370.91026638,0.00046585,120]
[358759090,1745414838792,-384.63394623,0.00046585,120]
[358759091,1745414838850,-384.63394623,0.00046585,120]
[358759092,1745414848409,200.0,0.00046585,40]
[358759093,1745414848589,207.4,0.00046585,40]
[358759094,1745414848660,215.0738,0.00046585,40]
[358759095,1745414848766,223.0315306,0.00046585,40]
[358759096,1745414848830,231.28369723,0.00046585,40]
[358759097,1745414848897,239.84119403,0.00046585,40]
[358759098,1745414849029,248.71531821,0.00046585,40]
[358759099,1745414849162,257.91778498,0.00046585,40]
[358759100,1745414849288,267.46074303,0.00046585,40]
[358759101,1745414849363,277.35679052,0.00046585,40]
[358759102,1745414849469,287.61899177,0.00046585,40]
[358759103,1745414849616,298.26089446,0.00046585,40]
[358759104,1745414850101,309.29654756,0.00046585,40]
[358759105,1745414850246,320.74051982,0.00046585,40]
[358759106,1745414850355,332.60791905,0.00046585,40]
[358759107,1745414850447,344.91441206,0.00046585,40]
[358759108,1745414850598,357.6762453,0.00046585,40]
[358759109,1745414850713,357.6762453,0.00046585,40]
[358759110,1745414850861,151.0,0.00046585,40]
[358759111,1745414850934,151.0,0.00046585,40]
[358759112,1745414851959,879.79666736,0.00046585,40]
[358759113,1745414880894,215.0,0.00046585,40]
[358759114,1745414898901,404.79367494,0.000135,2]
[358759116,1745414978197,541.34585684,0.00046585,40]
[358759121,1745415019327,265.0,0.00046585,40]
[358759129,1745415031662,-900.0,0.00019899,2]
[358759130,1745415031682,-240.78151628,0.00019899,2]
[358759131,1745415031699,-59.21848372,0.00019899,2]
[358759132,1745415031710,-16236.55109958,0.000199,2]
[358759133,1745415031719,-1548.58878097,0.000199,2]
[358759134,1745415031730,-206.25338225,0.000199,2]
[358759135,1745415031741,-2210.47507328,0.000199,2]
[358759136,1745415031752,-666.6884953,0.000199,2]
[358759137,1745415031762,-181.33364512,0.000199,2]
[358759138,1745415031772,-170.22702337,0.000199,2]
[358759139,1745415031782,-187.0,0.00019973,2]
[358759140,1745415031792,-500.0,0.00019973,2]
[358759141,1745415031802,-161.28163157,0.00019973,2]
[358759142,1745415031812,-398.93253936,0.00019973,2]
[358759143,1745415031821,-500.0,0.00019973,2]
[358759144,1745415031832,-264.93924724,0.0001999,2]
[358759145,1745415031842,-264.93924724,0.0001999,2]
[358759146,1745415031852,-264.93924724,0.0001999,2]
[358759147,1745415031862,-500.0,0.00019999,2]
[358759148,1745415031872,-39504.8,0.00019999,2]
[358759149,1745415031882,-83.16944092,0.00019999,2]
[358759150,1745415031894,-121.78114128,0.00019999,2]
[358759151,1745415031904,-9279.81885872,0.0002,2]
[358759152,1745415031945,-1787.96240183,0.0002,2]
[358759253,1745415037629,-939.69,0.000199,2]
[358759267,1745415038089,-172.0668,0.000199,2]
[358759273,1745415038132,-11914.07180041,0.0002,2]
[358759276,1745415038145,-1967.41000002,0.0002,2]
[358759279,1745415038157,-1620.877762,0.0002,2]
[358759282,1745415038169,-2290.16,0.0002,2]
[358759285,1745415038181,-476.03,0.0002,2]
[358759287,1745415038192,-444.0,0.0002,2]
[358759290,1745415038204,-1662.4,0.0002,2]
[358759292,1745415038216,-4435361.91671035,0.0002,2]
[358759294,1745415038229,-2494318.525,0.0002,2]
[358759437,1745415040101,-279.39681616,0.0002,2]
[358759439,1745415040113,-721.51123384,0.0002,2]
[358759441,1745415040125,-908.05000008,0.0002,2]
[358759457,1745415040391,-1856.6312,0.0002,2]
[358759464,1745415040492,-203.51452085,0.0002,2]
[358759760,1745415043604,687.62,0.00043836,30]
[358759885,1745415045080,246.0,0.00046585,40]
[358759961,1745415045740,-5163.9781922,0.0002,2]
[358759979,1745415045911,-7050.54052419,0.0002,2]
[358759981,1745415045923,-4754.02886028,0.0002,2]
[358759983,1745415045935,-2153.64560495,0.0002,2]
[358760068,1745415125131,567.69467571,0.00046585,120]
[358760069,1745415125219,500.0,0.00046585,120]
[358760070,1745415125433,518.5,0.00046585,120]
[358760071,1745415126113,537.6845,0.00046585,120]
[358760072,1745415126798,557.5788265,0.00046585,120]
[358760073,1745415127532,578.20924308,0.00046585,120]
[358760074,1745415127627,200.0,0.00046585,120]
[358760075,1745415128247,207.4,0.00046585,120]
[358760076,1745415128749,599.60298507,0.00046585,120]
[358760077,1745415128843,151.0,0.00046585,120]
[358760078,1745415128912,215.0738,0.00046585,120]
[358760079,1745415129404,621.78829552,0.00046585,120]
[358760080,1745415129527,223.0315306,0.00046585,120]
[358760081,1745415129599,151.0,0.00046585,120]
[358760082,1745415130145,644.79446246,0.00046585,120]
[358760083,1745415130216,231.28369723,0.00046585,120]
[358760084,1745415130304,151.0,0.00046585,120]
[358760085,1745415130813,668.65185757,0.00046585,120]
[358760086,1745415130912,239.84119403,0.00046585,120]
[358760087,1745415130986,151.0,0.00046585,120]
[358760088,1745415131502,693.3919763,0.00046585,120]
[358760089,1745415131632,151.0,0.00046585,120]
[358760090,1745415132013,248.71531821,0.00046585,120]
[358760091,1745415132250,151.0,0.00046585,120]
[358760092,1745415132779,693.3919763,0.00046585,120]
[358760093,1745415132888,257.91778498,0.00046585,120]
[358760094,1745415133320,151.0,0.00046585,120]
[358760095,1745415133388,267.46074303,0.00046585,120]
[358760096,1745415134027,277.35679052,0.00046585,120]
[358760097,1745415134101,151.0,0.00046585,120]
[358760098,1745415134677,287.61899177,0.00046585,120]
[358760099,1745415134744,151.0,0.00046585,120]
[358760100,1745415135353,298.26089446,0.00046585,120]
[358760101,1745415135530,151.0,0.00046585,120]
[358760102,1745415136016,309.29654756,0.00046585,120]
[358760103,1745415136550,151.0,0.00046585,120]
[358760104,1745415136718,320.74051982,0.00046585,120]
[358760105,1745415136853,151.0,0.00046585,120]
[358760106,1745415137351,332.60791905,0.00046585,120]
[358760107,1745415137530,151.0,0.00046585,120]
[358760108,1745415138026,344.91441206,0.00046585,120]
[358760109,1745415138188,151.0,0.00046585,120]
[358760110,1745415138974,357.6762453,0.00046585,120]
[358760111,1745415139085,151.0,0.00046585,120]
[358760112,1745415139314,370.91026638,0.00046585,120]
[358760113,1745415139486,151.0,0.00046585,120]
[358760114,1745415139963,384.63394623,0.00046585,120]
[358760115,1745415140139,151.0,0.00046585,120]
[358760116,1745415140641,384.63394623,0.00046585,120]
[358760117,1745415140761,151.0,0.00046585,120]
[358760118,1745415208857,501.67,0.00046585,120]
[358760119,1745415209091,501.67,0.00046585,120]
[358760120,1745415209326,501.67,0.00046585,120]
[358760121,1745415209587,501.67,0.00046585,120]
[358760122,1745415209819,501.67,0.00046585,120]
[358760123,1745415210091,501.67,0.00046585,120]
[358760124,1745415210352,501.67,0.00046585,120]
[358760125,1745415210580,501.67,0.00046585,120]
[358760126,1745415210818,501.67,0.00046585,120]
[358760127,1745415211056,501.67,0.00046585,120]
[358760128,1745415211291,501.67,0.00046585,120]
[358760129,1745415211562,501.67,0.00046585,120]
[358760130,1745415212402,501.67,0.00046585,120]
[358760131,1745415212513,501.67,0.00046585,120]
[358760132,1745415212655,501.67,0.00046585,120]
[358760133,1745415213039,501.67,0.00046585,120]
[358760134,1745415213307,501.67,0.00046585,120]
[358760135,1745415213567,501.67,0.00046585,120]
[358760136,1745415213862,501.67,0.00046585,120]
[358760137,1745415214113,501.67,0.00046585,120]
[358760138,1745415214744,501.67,0.00046585,120]
[358760139,1745415214906,501.67,0.00046585,120]
[358760140,1745415215139,501.67,0.00046585,120]
[358760141,1745415215383,501.71034695,0.00046585,120]
[358760142,1745415238750,160.0,0.00043,90]
[358760144,1745415245772,180.52506559,0.00046585,60]
[358760145,1745415264725,500.0,0.00046585,120]
[358760146,1745415265320,500.0,0.00046585,120]
[358760147,1745415265562,500.0,0.00046585,120]
[358760148,1745415265802,500.0,0.00046585,120]
[358760149,1745415266074,500.0,0.00046585,120]
[358760150,1745415266320,500.0,0.00046585,120]
[358760151,1745415267037,500.0,0.00046585,120]
[358760152,1745415267104,500.0,0.00046585,120]
[358760153,1745415267169,500.0,0.00046585,120]
[358760154,1745415267307,500.0,0.00046585,120]
[358760155,1745415267590,500.0,0.00046585,120]
[358760156,1745415267829,500.0,0.00046585,120]
[358760157,1745415268056,500.0,0.00046585,120]
[358760158,1745415268295,500.0,0.00046585,120]
[358760159,1745415268571,500.0,0.00046585,120]
[358760160,1745415268801,500.0,0.00046585,120]
[358760161,1745415269050,500.0,0.00046585,120]
[358760162,1745415269283,500.0,0.00046585,120]
[358760163,1745415269530,500.0,0.00046585,120]
[358760164,1745415269794,500.0,0.00046585,120]
[358760165,1745415271801,500.0,0.00046585,120]
[358760166,1745415272062,500.0,0.00046585,120]
[358760167,1745415272301,559.40000108,0.00046585,120]
[358760168,1745415291753,260.0,0.00046647,40]
[358760169,1745415300889,1277.68299981,0.00046647,40]
[358760170,1745415311428,1000.0,0.00043,30]
[358760171,1745415321400,727.0,0.00046647,120]
[358760172,1745415324982,1000.0,0.00037,60]
[358760173,1745415382138,160.0,0.00032904,30]
[358760174,1745415426624,200.0,0.00046647,120]
[358760175,1745415426925,207.4,0.00046647,120]
[358760176,1745415427054,1000.0,0.00034,120]
[358760177,1745415428133,215.0738,0.00046647,120]
[358760178,1745415428795,223.0315306,0.00046647,120]
[358760179,1745415429501,231.28369723,0.00046647,120]
[358760180,1745415430680,239.84119403,0.00046647,120]
[358760181,1745415431253,300.0,0.00041999,30]
[358760182,1745415431362,248.71531821,0.00046647,120]
[358760183,1745415432585,257.91778498,0.00046647,120]
[358760184,1745415432763,500.0,0.00041999,30]
[358760185,1745415433314,267.46074303,0.00046647,120]
[358760186,1745415434011,277.35679052,0.00046647,120]
[358760189,1745415464303,1504.752845,0.0004383,30]
[358760190,1745415509602,431.199,0.00038251,51]
[358760191,1745415559378,966.73413184,0.00046647,60]
[358760192,1745415618249,-340.212787,0.0001965,2]
[358760193,1745415618273,-250.0,0.00019749,2]
[358760194,1745415618298,-194.97707334,0.00019799,2]
[358760195,1745415618749,-828.08728966,0.00019799,2]
[358760196,1745415618774,-850.0,0.00019899,2]
[358760197,1745415618799,-900.0,0.00019899,2]
[358760198,1745415618824,-300.0,0.00019899,2]
[358760199,1745415618853,-150.0,0.000199,2]
[358760200,1745415618878,-265.9975,0.000199,2]
[358760201,1745415618902,-208.92883456,0.000199,2]
[358760202,1745415618925,-169.0254,0.000199,2]
[358760203,1745415618950,-308.2786,0.000199,2]
[358760204,1745415618974,-17832.5815,0.000199,2]
[358760205,1745415619002,-5976.91101544,0.000199,2]
[358760206,1745415684932,19968.41160001,0.00043836,30]
[358760207,1745415698989,-300.0,0.00019899,2]
[358760208,1745415699013,-225.074471,0.000199,2]
[358760209,1745415699036,-12466.2575,0.000199,2]
[358760210,1745415699060,-1897.1312,0.000199,2]
[358760211,1745415699083,-1804.068,0.000199,2]
[358760212,1745415699107,-165.50382458,0.000199,2]
[358760213,1745415699131,-9635.96500442,0.000199,2]
[358760214,1745415724715,151.0,0.00046647,120]
[358760215,1745415725242,151.0,0.00046647,120]
[358760216,1745415725333,500.0,0.00046647,120]
[358760217,1745415725416,151.0,0.00046647,120]
[358760218,1745415725862,151.0,0.00046647,120]
[358760219,1745415726047,518.5,0.00046647,120]
[358760220,1745415726133,151.0,0.00046647,120]
[358760221,1745415726536,151.0,0.00046647,120]
[358760222,1745415726692,537.6845,0.00046647,120]
[358760223,1745415727571,151.0,0.00046647,120]
[358760224,1745415727671,557.5788265,0.00046647,120]
[358760225,1745415727830,151.0,0.00046647,120]
[358760226,1745415727961,578.20924308,0.00046647,120]
[358760227,1745415728501,151.0,0.00046647,120]
[358760228,1745415728683,599.60298507,0.00046647,120]
[358760229,1745415729385,599.60298507,0.00046647,120]
[358760230,1745415732122,200.0,0.00046647,120]
[358760231,1745415732785,207.4,0.00046647,120]
[358760232,1745415732908,2000.0,0.00046647,120]
[358760233,1745415733478,215.0738,0.00046647,120]
[358760234,1745415734159,223.0315306,0.00046647,120]
[358760235,1745415734804,231.28369723,0.00046647,120]
[358760236,1745415735438,239.84119403,0.00046647,120]
[358760237,1745415736112,248.71531821,0.00046647,120]
[358760238,1745415737542,257.91778498,0.00046647,120]
[358760239,1745415738246,267.46074303,0.00046647,120]
[358760240,1745415738487,277.35679052,0.00046647,120]
[358760241,1745415738785,287.61899177,0.00046647,120]
[358760242,1745415739421,298.26089446,0.00046647,120]
[358760243,1745415740084,309.29654756,0.00046647,120]
[358760244,1745415740839,320.74051982,0.00046647,120]
[358760245,1745415741516,332.60791905,0.00046647,120]
[358760246,1745415742705,344.91441206,0.00046647,120]
[358760247,1745415743357,357.6762453,0.00046647,120]
[358760248,1745415744546,370.91026638,0.00046647,120]
[358760249,1745415745623,384.63394623,0.00046647,120]
[358760250,1745415745978,384.63394623,0.00046647,120]
[358760252,1745415838313,186.0,0.00043,90]
[358760253,1745415861168,150.0,0.00041095,120]
[358760254,1745415879229,562.22,0.00046683,120]
[358760255,1745415879465,562.22,0.00046683,120]
[358760256,1745415879741,562.22,0.00046683,120]
[358760257,1745415879991,562.22,0.00046683,120]
[358760258,1745415880242,562.22,0.00046683,120]
[358760259,1745415880506,562.22,0.00046683,120]
[358760260,1745415880744,562.22,0.00046683,120]
[358760261,1745415880970,562.22,0.00046683,120]
[358760262,1745415881234,562.22,0.00046683,120]
[358760263,1745415881484,562.22,0.00046683,120]
[358760264,1745415881743,562.22,0.00046683,120]
[358760265,1745415881989,562.22,0.00046683,120]
[358760266,1745415882273,562.22,0.00046683,120]
[358760267,1745415882577,562.22,0.00046683,120]
[358760268,1745415882811,562.22,0.00046683,120]
[358760269,1745415883045,562.22,0.00046683,120]
[358760270,1745415883263,562.22,0.00046683,120]
[358760271,1745415883531,562.22,0.00046683,120]
[358760272,1745415883769,562.22,0.00046683,120]
[358760273,1745415884200,562.22,0.00046683,120]
[358760274,1745415884278,562.22,0.00046683,120]
[358760275,1745415884837,562.22,0.00046683,120]
[358760276,1745415885102,562.22,0.00046683,120]
[358760277,1745415885341,562.31583875,0.00046683,120]
[358760278,1745415885971,1002.62,0.00043836,30]
[358760279,1745415895068,1814.0,0.00046683,40]
[358760280,1745415900456,260.4011665,0.00046683,40]
[358760281,1745415908435,500.0,0.00046683,120]
[358760282,1745415908587,500.0,0.00046683,120]
[358760283,1745415908732,500.0,0.00046683,120]
[358760284,1745415908888,500.0,0.00046683,120]
[358760285,1745415915881,1150.78,0.00043751,30]
[358760286,1745415918127,375.17,0.00043751,30]
[358760287,1745415963603,500.0,0.00046683,120]
[358760288,1745415963688,500.0,0.00046683,120]
[358760289,1745415963788,500.0,0.00046683,120]
[358760290,1745415974747,1150.78,0.00043751,30]
[358760291,1745416023994,151.0,0.00046683,120]
[358760292,1745416024359,500.0,0.00046683,120]
[358760293,1745416024620,151.0,0.00046683,120]
[358760294,1745416024982,518.5,0.00046683,120]
[358760295,1745416025433,151.0,0.00046683,120]
[358760296,1745416025502,200.0,0.00046683,120]
[358760297,1745416025656,537.6845,0.00046683,120]
[358760298,1745416026165,207.4,0.00046683,120]
[358760299,1745416026488,151.0,0.00046683,120]
[358760300,1745416026800,215.0738,0.00046683,120]
[358760301,1745416027123,151.0,0.00046683,120]
[358760302,1745416027444,223.0315306,0.00046683,120]
[358760303,1745416027803,151.0,0.00046683,120]
[358760304,1745416028074,231.28369723,0.00046683,120]
[358760305,1745416028664,151.0,0.00046683,120]
[358760306,1745416030106,151.0,0.00046683,120]
[358760307,1745416030474,151.0,0.00046683,120]
[358760308,1745416031412,151.0,0.00046683,120]
[358760309,1745416033027,239.84119403,0.00046683,120]
[358760310,1745416033739,248.71531821,0.00046683,120]
[358760311,1745416034411,257.91778498,0.00046683,120]
[358760312,1745416035034,267.46074303,0.00046683,120]
[358760313,1745416035730,277.35679052,0.00046683,120]
[358760314,1745416036413,287.61899177,0.00046683,120]
[358760315,1745416037089,298.26089446,0.00046683,120]
[358760316,1745416037783,309.29654756,0.00046683,120]
[358760317,1745416038466,320.74051982,0.00046683,120]
[358760318,1745416039090,332.60791905,0.00046683,120]
[358760319,1745416040057,344.91441206,0.00046683,120]
[358760320,1745416040999,357.6762453,0.00046683,120]
[358760321,1745416041665,370.91026638,0.00046683,120]
[358760322,1745416042405,384.63394623,0.00046683,120]
[358760323,1745416043063,384.63394623,0.00046683,120]
[358760324,1745416069725,306.0,0.000438,30]
[358760325,1745416069804,423.34,0.00046683,40]
[358760327,1745416098580,1150.78,0.00043751,30]
[358760330,1745416158682,1150.78,0.00043751,30]
[358760348,1745416232010,-150.0,0.00019701,2]
[358760349,1745416232020,-467.7683,0.000198,2]
[358760350,1745416232029,-900.0,0.00019899,2]
[358760351,1745416232042,-300.0,0.00019899,2]
[358760352,1745416232051,-175.7267,0.000199,2]
[358760353,1745416232066,-5710.7376676,0.000199,2]
[358760354,1745416232082,-23.05856285,0.000199,2]
[358760355,1745416232092,-164.00657503,0.000199,2]